Workbook

Sheet Лист1
A1: Школа | C1: МБОУ СОШ им. В.Н.Горшкова с. Маядык | F1: Утвердил: | G1: должность | H1: Директор
A2: Типовое примерное меню приготавливаемых блюд | G2: фамилия | H2: Камильянов А.В.
A3: Возрастная категория | E3: с 5 по 9 классы | G3: дата | H3: 2026-01-12
A5: Неделя | B5: День недели | C5: Прием пищи | D5: Раздел меню | E5: Блюда | F5: Вес блюда, г | G5: Белки | H5: Жиры | I5: Углеводы | J5: Калорийность | K5: № рецептуры | L5: Цена
A6: 1 | B6: 1 | C6: Завтрак | D6: гор.блюдо | E6: Каша гречневая рассыпчатая и котлеты из говядины с томатным соусом | F6: 295 | G6: 20.50 | H6: 19.50 | I6: 64.40 | J6: 515.80 | K6: 219;189 | L6: 61.21
D8: гор.напиток | E8: Чай с сахаром | F8: 200 | G8: 0.10 | I8: 9.10 | J8: 35.00 | K8: 283 | L8: 1.87
D9: хлеб | E9: Пшеничный 1сорта для д/п | F9: 55.0 | G9: 4.70 | H9: 0.70 | I9: 28.40 | J9: 139.70 | K9: 7 | L9: 5.50
D10: фрукты | E10: Свежие фрукты (Апельсин) | F10: 160 | G10: 2.30 | H10: 2.10 | I10: 11.30 | J10: 79.00 | K10: 37 | L10: 15.00
D13: итого | F13: =F6+F7+F8+F9+F10+F11+F12 -> 710 | G13: =G6+G7+G8+G9+G10+G11+G12 -> 27.6 | H13: =H6+H7+H8+H9+H10+H11+H12 -> 22.3 | I13: =SUM(I6:I12) -> 113.2 | J13: =SUM(J6:J12) -> 769.5
A14: =A6 -> 1 | B14: 1 | C14: Обед | D14: закуска
D15: 1 блюдо
D16: 2 блюдо
D17: гарнир
D18: напиток
D19: хлеб бел.
D20: хлеб черн.
D23: итого
A24: =A6 -> 1 | B24: =B6 -> 1 | C24: Итого за день: | F24: =F13+F23 -> 710 | G24: 27.6 | H24: 22.3 | I24: 113.2 | J24: 769.5 | K24: 0 | L24: 0
A25: 1 | B25: 2 | C25: Завтрак | D25: гор.блюдо | E25: Каша овсяная молочная | F25: 205.0 | G25: 9.00 | H25: 10.00 | I25: 31.70 | J25: 254.10 | K25: 206 | L25: 18.48
D26: гор.напиток | E26: Чай с лимоном и сахаром | F26: 200.0 | G26: 0.10 | H26: 0.01 | I26: 15.31 | J26: 61.62 | K26: 294 | L26: 4.89
D27: хлеб | E27: Бутерброт с маслом | F27: 70.0 | G27: 5.90 | H27: 8.20 | I27: 31.70 | J27: 191.30 | K27: 1.2 | L27: 16.20
D28: напиток | E28: Сок для детского питания | F28: 200.0 | G28: 0.00 | H28: 0.00 | I28: 24.00 | J28: 96.00 | K28: 36 | L28: 24.00
D29: сладкое | E29: Печенье | F29: 20 | G29: 3.00 | H29: 3.20 | I29: 13.40 | J29: 88.00 | K29: 5 | L29: 12.00
D32: итого | F32: =SUM(F25:F31) -> 695 | G32: 18 | H32: 21.41 | I32: 116.11 | J32: 691.02
A33: =A25 -> 1 | B33: 2 | C33: Обед | D33: закуска
D34: 1 блюдо
D35: 2 блюдо
D36: гарнир
D37: напиток
D38: хлеб бел.
D39: хлеб черн.
D42: итого
A43: =A25 -> 1 | B43: =B25 -> 2 | C43: Итого за день:
A44: 1 | B44: 3 | C44: Завтрак | D44: гор.блюдо | E44: Картофельное пюре и палочки школьные | F44: 290 | G44: 13.30 | H44: 14.10 | I44: 31.20 | J44: 381.20 | K44: 241;34 | L44: 49.79
D45: гор.напиток | E45: Чай с сахаром | F45: 200 | G45: 0.10 | H45: 0.00 | I45: 9.10 | J45: 35.00 | K45: 283 | L45: 1.85
D46: хлеб | E46: Пшеничный 1 сорта для д/п | F46: 55 | G46: 4.70 | H46: 0.70 | I46: 28.40 | J46: 139.70 | K46: 7 | L46: 5.50
D47: закуска | E47: Маринад овощной без томата | F47: 100.0 | G47: 1.20 | H47: 8.90 | I47: 9.80 | J47: 123.00 | K47: 47 | L47: 5.94
D51: итого | F51: =SUM(F44:F50) -> 645 | G51: =SUM(G44:G50) -> 19.3 | H51: =SUM(H44:H50) -> 23.7 | I51: =SUM(I44:I50) -> 78.5 | J51: =SUM(J44:J50) -> 678.9
A52: =A44 -> 1 | B52: 3 | C52: Обед | D52: закуска
D53: 1 блюдо
D54: 2 блюдо
D55: гарнир
D56: напиток
D57: хлеб бел.
D58: хлеб черн.
D61: итого
A62: =A44 -> 1 | B62: =B44 -> 3 | C62: Итого за день:
A63: 1 | B63: 4 | C63: Завтрак | D63: гор.блюдо | E63: Каша рисовая молочная жидкая | F63: 205 | G63: 5.10 | H63: 10.60 | I63: 32.60 | J63: 210.10 | K63: 114 | L63: 12.27
D64: гор.напиток | E64: Чай с лимоном и сахаром | F64: 200 | G64: 0.10 | H64: 0.00 | I64: 15.31 | J64: 61.62 | K64: 294 | L64: 4.73
D65: хлеб | E65: Пшеничный 1 сорта для д/п с сыром | F65: 75.0 | G65: 9.30 | H65: 6.60 | I65: 29.00 | J65: 212.50 | K65: 7;91 | L65: 17.70
D66: фрукты | E66: Свежие фрукты (банан) | F66: 160 | G66: 2.70 | H66: 0.90 | I66: 31.80 | J66: 111.00 | K66: 35 | L66: 24.00
D67: сладкое | E67: Вафли Муля для д/п | F67: 30 | G67: 2.10 | H67: 9.90 | I67: 16.80 | J67: 163.50 | K67: 3 | L67: 11.00
D70: итого | F70: =F63+F64+F65+F66+F67+F68+F69 -> 670 | G70: =G63+G64+G65+G66+G67+G68+G69 -> 19.3 | H70: =H63+H64+H65+H66+H67+H68+H69 -> 28 | I70: =I63+I64+I65+I66+I67+I68+I69 -> 125.51 | J70: =J63+J64+J65+J66+J67+J68+J69 -> 758.72
A71: =A63 -> 1 | B71: =B63 -> 4 | C71: Обед | D71: закуска
D72: 1 блюдо
D73: 2 блюдо
D74: гарнир
D75: напиток
D76: хлеб бел.
D77: хлеб черн.
D80: итого
A81: =A63 -> 1 | B81: =B63 -> 4 | C81: Итого за день:
A82: 1 | B82: 5 | C82: Завтрак | D82: гор.блюдо | E82: Макаронные изделия отварные и тефтели куриные с томатным соусом | F82: 295 | G82: 18.60 | H82: 21.70 | I82: 62.30 | J82: 468.50 | K82: 227;220 | L82: 55.91
D84: гор.напиток | E84: Чай витаминизированный | F84: 200 | G84: 0.10 | H84: 0.00 | I84: 8.70 | J84: 34.00 | K84: 286 | L84: 4.73
D85: хлеб | E85: Пшеничный 1 сорта для д/п с сыром | F85: 75.0 | G85: 9.30 | H85: 6.60 | I85: 29.00 | J85: 212.50 | K85: 7;91 | L85: 11.60
D86: сладкое | E86: Кексы для детского питания | F86: 40 | G86: 2.50 | H86: 8.80 | I86: 22.40 | J86: 170.00 | K86: 11 | L86: 8.00
D89: итого | F89: =F82+F83+F84+F85+F86+F87+F88 -> 610 | G89: =G82+G83+G84+G85+G86+G87+G88 -> 30.5 | H89: =H82+H83+H84+H85+H86+H87+H88 -> 37.1 | I89: =I82+I83+I84+I85+I86+I87+I88 -> 122.4 | J89: =J82+J83+J84+J85+J86+J87+J88 -> 885
A90: =A82 -> 1 | B90: 5 | C90: Обед | D90: закуска
D91: 1 блюдо
D92: 2 блюдо
D93: гарнир
D94: напиток
D95: хлеб бел.
D96: хлеб черн.
D97: булочное
D99: итого
A100: =A82 -> 1 | B100: =B82 -> 5 | C100: Итого за день:
A101: 2 | B101: 1 | C101: Завтрак | D101: гор.блюдо | E101: Макароны с сыром | F101: 200 | G101: 9.80 | H101: 15.60 | I101: 32.20 | J101: 302.60 | K101: 213 | L101: 24.10
D103: гор.напиток | E103: Какао с молоком | F103: 200 | G103: 3.60 | H103: 3.30 | I103: 13.60 | J103: 100.00 | K103: 306 | L103: 10.57
D104: хлеб | E104: Пшеничный 1 сорта для д/п | F104: 55.0 | G104: 4.70 | H104: 0.70 | I104: 28.40 | J104: 139.70 | K104: 7 | L104: 5.75
D105: напиток | E105: Сок для детского питания | F105: 200 | I105: 24.00 | J105: 96.00 | K105: 36 | L105: 25.00
D108: итого | F108: =F101+F102+F103+F104+F105+F106+F107 -> 655 | G108: =G101+G102+G103+G104+G105+G106+G107 -> 18.1 | H108: =H101+H102+H103+H104+H105+H106+H107 -> 19.6 | I108: =I101+I102+I103+I104+I105+I106+I107 -> 98.2 | J108: =J101+J102+J103+J104+J105+J106+J107 -> 638.3
A109: =A101 -> 2 | B109: 1 | C109: Обед | D109: закуска
D110: 1 блюдо
D111: 2 блюдо
D112: гарнир
D113: напиток
D114: хлеб бел.
D115: хлеб черн.
D118: итого
A119: =A101 -> 2 | B119: =B101 -> 1 | C119: Итого за день:
A120: 2 | B120: 2 | C120: Завтрак | D120: гор.блюдо | E120: Каша гречневая рассыпчатая и гуляш из говядины | F120: 295 | G120: 24.60 | H120: 21.30 | I120: 58.30 | J120: 516.60 | K120: 219;96 | L120: 60.96
D122: гор.напиток | E122: Чай с сахаром | F122: 200 | G122: 0.10 | H122: 0.00 | I122: 9.10 | J122: 35.00 | K122: 283 | L122: 4.73
D123: хлеб | E123: Пшеничный 1 сорта для д/п | F123: 55.0 | G123: 4.70 | H123: 0.70 | I123: 28.40 | J123: 139.70 | K123: 7 | L123: 2.75
D124: закуска | E124: Салат из свеклы отварной | F124: 100.0 | G124: 1.40 | H124: 5.10 | I124: 16.50 | J124: 75.40 | K124: 23 | L124: 6.23
D127: итого | F127: =F120+F121+F122+F123+F124+F125+F126 -> 650 | G127: =G120+G121+G122+G123+G124+G125+G126 -> 30.8 | H127: =H120+H121+H122+H123+H124+H125+H126 -> 27.1 | I127: =I120+I121+I122+I123+I124+I125+I126 -> 112.3 | J127: =J120+J121+J122+J123+J124+J125+J126 -> 766.7
A128: =A120 -> 2 | B128: 2 | C128: Обед | D128: закуска
D129: 1 блюдо
D130: 2 блюдо
D131: гарнир
D132: напиток
D133: хлеб бел.
D134: хлеб черн.
D137: итого
A138: =A120 -> 2 | B138: =B120 -> 2 | C138: Итого за день:
A139: 2 | B139: 3 | C139: Завтрак | D139: гор.блюдо | E139: Каша пшенная молочная жидкая | F139: 205 | G139: 7.30 | H139: 8.90 | I139: 33.70 | J139: 245.00 | K139: 123 | L139: 21.45
D141: гор.напиток | E141: Чай с сахаром | F141: 200 | G141: 0.10 | H141: 0.00 | I141: 9.10 | J141: 35.00 | K141: 283 | L141: 3.93
D142: хлеб | E142: Бутерброд с маслом и сыром | F142: 90 | G142: 10.50 | H142: 14.10 | I142: 32.30 | J142: 264.10 | K142: 1,2;91 | L142: 23.26
D143: фрукты | E143: Свежие фрукты(Апельсин) | F143: 160 | G143: 2.30 | H143: 2.10 | I143: 11.30 | J143: 79.00 | K143: 37 | L143: 20.00
D146: итого | F146: =F139+F140+F141+F142+F143+F144 -> 655 | G146: =G139+G140+G141+G142+G143+G144 -> 20.2 | H146: =H139+H140+H141+H142+H143+H144 -> 25.1 | I146: =I139+I140+I141+I142+I143+I144 -> 86.4 | J146: =J139+J140+J141+J142+J143+J144 -> 623.1
A147: =A139 -> 2 | B147: 3 | C147: Обед | D147: закуска
D148: 1 блюдо
D149: 2 блюдо
D150: гарнир
D151: напиток
D152: хлеб бел.
D153: хлеб черн.
D156: итого
A157: =A139 -> 2 | B157: =B139 -> 3 | C157: Итого за день:
A158: 2 | B158: 4 | C158: Завтрак | D158: гор.блюдо | E158: Картофельное пюре и котлеты куриные с томатным соусом | F158: 290 | G158: 14.80 | H158: 17.80 | I158: 35.20 | J158: 403.10 | K158: 241;40 | L158: 52.75
D160: гор.напиток | E160: Чай с лимоном и сахаром | F160: 200.0 | G160: 0.10 | H160: 0.00 | I160: 15.31 | J160: 61.62 | K160: 294 | L160: 4.08
D161: хлеб | E161: Хлеб пшеничный 1 сорта для д/п | F161: 55 | G161: 4.70 | H161: 0.70 | I161: 28.40 | J161: 139.70 | K161: 7 | L161: 2.75
D162: сладкое | E162: Шоколад Аленка для д/п | F162: 15 | G162: 1.1 | H162: 5.1 | I162: 8 | J162: 83 | K162: 3 | L162: 19
D165: итого | F165: =F158+F159+F160+F161+F162+F163+F164 -> 560 | G165: =G158+G159+G160+G161+G162+G163+G164 -> 20.7 | H165: =H158+H159+H160+H161+H162+H163+H164 -> 23.6 | I165: =I158+I159+I160+I161+I162+I163+I164 -> 86.91 | J165: =J158+J159+J160+J161+J162+J163+J164 -> 687.42
A166: =A158 -> 2 | B166: 4 | C166: Обед | D166: закуска
D167: 1 блюдо
D168: 2 блюдо
D169: гарнир
D170: напиток
D171: хлеб бел.
D172: хлеб черн.
D175: итого
A176: =A158 -> 2 | B176: =B158 -> 4 | C176: Итого за день:
A177: 2 | B177: 5 | C177: Завтрак | D177: гор.блюдо | E177: Каша "Дружба" | F177: 205 | G177: 6.40 | H177: 8.20 | I177: 34.50 | J177: 236.90 | K177: 102 | L177: 22.18
D179: гор.напиток | E179: Чай витаминизированный | F179: 200 | G179: 0.10 | H179: 0.00 | I179: 8.70 | J179: 34.00 | K179: 286 | L179: 5.67
D180: хлеб | E180: Пшеничный 1 сорта для д/п | F180: 55.0 | G180: 4.70 | H180: 0.70 | I180: 28.40 | J180: 139.70 | K180: 7 | L180: 5.50
D183: сладкое | E183: Плюшка Московская | F183: 100 | G183: 7.60 | H183: 9.60 | I183: 55.90 | J183: 236.00 | K183: 9 | L183: 25.00
D184: итого | F184: =F177+F178+F179+F180+F181+F182+F183 -> 560.0 | G184: =G177+G178+G179+G180+G181+F1822+G183 -> 18.80 | H184: =H177+H178+H179+H180+H181+H182+H183 -> 18.50 | I184: =I177+I178+I179+I180+I181+I182+I183 -> 127.50 | J184: =J177+J178+J179+J180+J181+J182+J183 -> 646.60
A185: =A177 -> 2 | B185: 5 | C185: Обед | D185: закуска
D186: 1 блюдо
D187: 2 блюдо
D188: гарнир
D189: напиток
D190: хлеб бел.
D191: хлеб черн.
O193: =G13+G32+G51+G70+G89+G108+G127+G146+G165+G184 -> 223.3 | P193: =H13+H32+H51+H70+H89+H108+H127+H146+H165+H184 -> 246.41 | Q193: =I13+I32+I51+I70+I89+I108+I127+I146+I165+I184 -> 1067.03
D194: итого
A195: =A177 -> 2 | B195: =B177 -> 5 | C195: Итого за день:
